{"text_format":"2","workbook":"xlsx","n_sheets":13,"sheets":["Főösszesítő","Munkanem összesítő","220","250","251","252","253","310","311","420","421","422","423"],"not_rendered":{"charts":0,"images":0,"macros":0,"external_links":0,"defined_names":8,"comments":0,"pivot_tables":0},"unopened":[],"bounds":{"document_bytes":16777216,"sheet_cells":100000,"run_cost":"one","rows_first":2000,"rows_last":500,"rows_between":2000,"halvings":0,"cell_chars":16384,"cell_head_chars":4096},"cells_cut":0,"cells_raw":0,"read":"whole","date_system":"1900"}

{"sheet":"Főösszesítő","index":0,"n_rows":20,"n_cols":4,"rows_kept":20,"cut":false,"hidden":false,"merged":[[19,2,19,3],[14,2,14,3],[0,0,0,3],[1,0,1,1],[7,0,7,3],[12,2,12,3],[13,2,13,3]]}
["Munka neve: \n"]
["Szeged 001-263 Vendégalakulat tr állomás és KÖF leágazás kiváltása"]
[]
["Kitöltötte:"]
[]
[]
[]
["Költségvetés főösszesítő"]
["Megnevezés",null,"Anyagköltség","Díjköltség"]
["1 Építmény közvetlen költségei",null,{"$f":"'Munkanem összesítő'!C13","v":0},{"$f":"'Munkanem összesítő'!D13","v":0}]
["Közvetlen önköltség összesen",null,{"$f":"(C10+D10)","v":0}]
["Tartalékkeret",0.1,{"$f":"(C11*0.1)","v":0}]
["2.1 ÁFA  alap",null,{"$f":"(C11+C12)","v":0}]
["2.2 ÁFA",0.27,{"$f":"(C13*0.27)","v":0}]
["3 A munka ára (HUF)",null,{"$f":"(C13+C14)","v":0}]
[]
[]
[]
[]
[null,null,"cégszerű aláírás"]

{"sheet":"Munkanem összesítő","index":1,"n_rows":13,"n_cols":4,"rows_kept":13,"cut":false,"hidden":false,"merged":[]}
["Ssz.","Megnevezés","Anyagköltség","Díjköltség"]
[1,{"$f":"'220'!B4","v":"Vendégalakulat 22 kV légvezeték bontás"},{"$f":"'220'!G29","v":0},{"$f":"'220'!H29","v":0}]
[2,{"$f":"'250'!B4","v":"Vendégalakulat tr légvezeték 3. sz. oszl 22 kV-os kábel bontás"},{"$f":"'250'!G16","v":0},{"$f":"'250'!H16","v":0}]
[3,{"$f":"'251'!B4","v":"CORA és Kkdorozsma 101 oszl 22 kV-os kábel bontás"},{"$f":"'251'!G17","v":0},{"$f":"'251'!H17","v":0}]
[4,{"$f":"'252'!B4","v":"Campus kör 22 kV-os kábel bontása"},{"$f":"'252'!G19","v":0},{"$f":"'252'!H19","v":0}]
[5,{"$f":"'253'!B4","v":"Campus kör 22 kV-os kábel építés"},{"$f":"'253'!G42","v":0},{"$f":"'253'!H42","v":0}]
[6,{"$f":"'310'!B4","v":"Vendégalakulat 001-263 trafó bontása"},{"$f":"'310'!G25","v":0},{"$f":"'310'!H25","v":0}]
[7,{"$f":"'311'!B4","v":"Vendégalakulat 001-263 trafó áthelyezés építés"},{"$f":"'311'!G47","v":0},{"$f":"'311'!H47","v":0}]
[8,{"$f":"'420'!B4","v":"Vendégalakulat tr ideigl. 0,4 kV kábel építés"},{"$f":"'420'!G27","v":0},{"$f":"'420'!H27","v":0}]
[9,{"$f":"'421'!B4","v":"Vendégalakulat tr ideigl 0,4 kV kábel bontás"},{"$f":"'421'!G15","v":0},{"$f":"'421'!H15","v":0}]
[10,{"$f":"'422'!B4","v":"Vendégalakulat tr. 0,4 kV kábel építés"},{"$f":"'422'!G88","v":0},{"$f":"'422'!H88","v":0}]
[11,{"$f":"'423'!B4","v":"Vendégalakulat tr térvilágítás kábelhálózat építés"},{"$f":"'423'!G40","v":0},{"$f":"'423'!H40","v":0}]
[null,"Összesen (HUF)",{"$f":"SUM(C2:C12)","v":0},{"$f":"SUM(D2:D12)","v":0}]

{"sheet":"220","index":2,"n_rows":29,"n_cols":9,"rows_kept":29,"cut":false,"hidden":false,"merged":[]}
[null,"Szeged 001-263. jsz. Vendégalakulat-I. közcélú transzformátor-állomás és a középfeszült-ségű leágazásának kiváltása","DTIR sorszám",1]
[null,"Somogyi János - Z/9001-24100/69 - 0 ver. - Szerkesztés","Rajzi sorszám","Ke-01"]
["Fejezet","220 - KÖF 22 kV-os légvezeték","Főberendezés típus","Ald. légvezeték"]
["Fejezet név","Vendégalakulat 22 kV légvezeték bontás","Vezeték / Kábel típus / keresztmetszet","3x50 mm2"]
[null,null,"Szakaszhossz",280]
["Azonosító","Megnevezés","Me. e.",null,"Egységár anyag\nNetto ár Ft","Egységár díj\nNetto ár Ft","Összesen anyag\nNetto ár Ft","Összesen díj\nNetto ár Ft","Mindösszesen\nNetto ár Ft"]
["020301010","V 12-3550-as tűzihorganyzott vasoszlop csonkkal súlyalappal","DB",1,0,0,{"$f":"PRODUCT(D7,E7)","v":0},{"$f":"PRODUCT(D7,F7)","v":0},{"$f":"SUM(G7,H7)","v":0}]
["020301020","V 12-4550-as tűzihorganyzott vasoszlop csonkkal súlyalappal","DB",1,0,0,{"$f":"PRODUCT(D8,E8)","v":0},{"$f":"PRODUCT(D8,F8)","v":0},{"$f":"SUM(G8,H8)","v":0}]
["020552010","Oszlopkapcsolós leágazókar, hajtás tartóval","DB",1,0,0,0,0,0]
["020601040","KÖF Aludur /AASC/ sodrony  50 mm2 1x3 szálas","KM",0.3,0,0,0,0,0]
["020705010","20kV porcelán, tömörtestű tartószigetelő","DB",15,0,0,0,0,0]
["020708010","20kV porcelán, rúdszigetelő, kettős felfüggesztéssel","DB",6,0,0,0,0,0]
["022001030","B 12-400-as áttört gerincű vasbeton oszlop támlemezzel","DB",2,0,0,0,0,0]
["024002010","Tartó kereszttartó acél háromszög elrendezésű B-800-ig","DB",2,0,0,0,0,0]
["024010010","Feszítő kereszttartó V-1850-4550 oszlopokhoz VÁT-H 2-70030","DB",2,0,0,0,0,0]
["024010020","Feszítő-leágazó kereszttartó V-1850-4550 oszlopokhoz VÁT-H 2-70033","DB",1,0,0,0,0,0]
["025001010","Oszlopkapcsolo felerosito vasszerkezet 20-7-028/1,2","DB",1,0,0,0,0,0]
["025004010","C2 csúcstartó B-1300-as oszlopra 2-es felgüggesztés VÁT-H 2-70004","DB",2,0,0,0,0,0]
["025007030","Terelőkar vasoszlopra VÁT-H 2-70025","DB",2,0,0,0,0,0]
["025007040","Terelőkar vasoszlop csúcstartóra","DB",1,0,0,0,0,0]
["025008010","Túlfeszültség korlátozó tartó vasszerkezet, földkábel-szabadvezeték csatlakozáshoz","DB",2,0,0,0,0,0]
["025010010","Keretföldelő 1x1m-es KÖF OK hajtáshoz","DB",1,0,0,0,0,0]
["027001010","Oszlopkapcsoló vízszintes OK-2, földelőkés nélkül, 3 sor szigetelővel, 1 db kézihajtással","DB",1,0,0,0,0,0]
["028003010","Végkötés csavaros feszítővel 25-120 mm2","DB",6,0,0,0,0,0]
["032015010","Túlfeszültség korlátozó 24kV10kA","DB",6,0,0,0,0,0]
["101102010","KÖF feszültségmentesítési és kiértesítési díj (egy napra, egy munkaterületre)","DB",1,0,0,0,0,0]
["602112010","Talajcseréhez homok visszatöltés","M3",30,0,0,0,0,0]
["100005","HOMOK","M3",31.5,0,0,0,0,0]
[null,"Összesen:",{"$nulls":4},{"$f":"SUM(G7:G28)","v":0},{"$f":"SUM(H7:H28)","v":0},{"$f":"SUM(I7:I28)","v":0}]

{"sheet":"250","index":3,"n_rows":1048576,"n_cols":9,"rows_kept":1048576,"cut":false,"hidden":false,"merged":[]}
[null,"Szeged 001-263. jsz. Vendégalakulat-I. közcélú transzformátor-állomás és a középfeszült-ségű leágazásának kiváltása","DTIR sorszám",2]
[null,"Somogyi János - Z/9001-24100/69 - 0 ver. - Szerkesztés","Rajzi sorszám","Ke-01"]
["Fejezet","250 - KÖF 22 kV-os földkábel","Főberendezés típus","22 kV-os kábel"]
["Fejezet név","Vendégalakulat tr légvezeték 3. sz. oszl 22 kV-os kábel bontás","Vezeték / Kábel típus / keresztmetszet","3x1x150 mm2"]
[null,null,"Szakaszhossz",260]
["Azonosító","Megnevezés","Me. e.",null,"Egységár anyag\nNetto ár Ft","Egységár díj\nNetto ár Ft","Összesen anyag\nNetto ár Ft","Összesen díj\nNetto ár Ft","Mindösszesen\nNetto ár Ft"]
["060302130","20kV XLPE kábel árokból 1x95","KM",4.4999999999999998E-2,0,0,{"$f":"PRODUCT(D7,E7)","v":0},{"$f":"PRODUCT(D7,F7)","v":0},{"$f":"SUM(G7,H7)","v":0}]
["060306130","20kV XLPE kábel tartóról 1x95","FM",24,0,0,{"$f":"PRODUCT(D8,E8)","v":0},{"$f":"PRODUCT(D8,F8)","v":0},{"$f":"SUM(G8,H8)","v":0}]
["063012010","Kábel bújtatás 4x185-240,3xPE,10kV/Papír","DB",3,0,0,0,0,0]
["063014010","Műanyag kábelfedlap árokba, belterületi KÖF kábelezéshez","TM",1,0,0,0,0,0]
["063015010","Kábel jelzőszalag terítése","TM",1,0,0,0,0,0]
["065001040","Védőcső flexibilis gégecső 160mm fektetése, toldókarmantyúval nélkül","FM",6,0,0,0,0,0]
["065017010","Kábel csőbe 4x185-240, 3xPE, 10kV/Papír","FM",20,0,0,0,0,0]
["065022020","KÖF kábel rögzítése vasoszlopon szalaggal","DB",9,0,0,0,0,0]
["602104010","Kábelárok ásás és visszatöltés kézzel 1,2x0,8m, dúcolva","FM",10,0,0,0,0,0]
[null,"Összesen:",{"$nulls":4},{"$f":"SUM(G7:G15)","v":0},{"$f":"SUM(H7:H15)","v":0},0]
{"$rows_empty":1048559}
[{"$nulls":6},{"$f":"SUM(G7:G1048575)","v":0},{"$f":"SUM(H7:H1048575)","v":0},{"$f":"SUM(G1048576:H1048576)","v":0}]

{"sheet":"251","index":4,"n_rows":17,"n_cols":9,"rows_kept":17,"cut":false,"hidden":false,"merged":[]}
[null,"Szeged 001-263. jsz. Vendégalakulat-I. közcélú transzformátor-állomás és a középfeszült-ségű leágazásának kiváltása","DTIR sorszám",3]
[null,"Somogyi János - Z/9001-24100/69 - 0 ver. - Szerkesztés","Rajzi sorszám","Ke-01"]
["Fejezet","251 - KÖF 22 kV-os földkábel","Főberendezés típus","22 kV-os kábel"]
["Fejezet név","CORA és Kkdorozsma 101 oszl 22 kV-os kábel bontás","Vezeték / Kábel típus / keresztmetszet","3x1x150 mm2"]
[null,null,"Szakaszhossz",260]
["Azonosító","Megnevezés","Me. e.",null,"Egységár anyag\nNetto ár Ft","Egységár díj\nNetto ár Ft","Összesen anyag\nNetto ár Ft","Összesen díj\nNetto ár Ft","Mindösszesen\nNetto ár Ft"]
["060302140","20kV XLPE kábel árokból 1x150","KM",0.24,0,0,{"$f":"PRODUCT(D7,E7)","v":0},{"$f":"PRODUCT(D7,F7)","v":0},{"$f":"SUM(G7,H7)","v":0}]
["060306140","20kV XLPE kábel tartóról 1x150","FM",24,0,0,{"$f":"PRODUCT(D8,E8)","v":0},{"$f":"PRODUCT(D8,F8)","v":0},{"$f":"SUM(G8,H8)","v":0}]
["063012010","Kábel bújtatás 4x185-240,3xPE,10kV/Papír","DB",3,0,0,0,0,0]
["063014010","Műanyag kábelfedlap árokba, belterületi KÖF kábelezéshez","TM",8,0,0,0,0,0]
["063015010","Kábel jelzőszalag terítése","TM",8,0,0,0,0,0]
["065001040","Védőcső flexibilis gégecső 160mm fektetése, toldókarmantyúval nélkül","FM",6,0,0,0,0,0]
["065017010","Kábel csőbe 4x185-240, 3xPE, 10kV/Papír","FM",60,0,0,0,0,0]
["065022020","KÖF kábel rögzítése vasoszlopon szalaggal","DB",9,0,0,0,0,0]
["602104010","Kábelárok ásás és visszatöltés kézzel 1,2x0,8m, dúcolva","FM",77,0,0,0,0,0]
["602109010","Szerelő-, irányváltó- vagy indító/fogadó gödör ásás/visszatöltés","M3",2,0,0,0,0,0]
[null,"Összesen:",{"$nulls":4},{"$f":"SUM(G7:G16)","v":0},{"$f":"SUM(H7:H16)","v":0},0]

{"sheet":"252","index":5,"n_rows":19,"n_cols":9,"rows_kept":19,"cut":false,"hidden":false,"merged":[]}
[null,"Szeged 001-263. jsz. Vendégalakulat-I. közcélú transzformátor-állomás és a középfeszült-ségű leágazásának kiváltása","DTIR sorszám",4]
[null,"Somogyi János - Z/9001-24100/69 - 0 ver. - Szerkesztés","Rajzi sorszám","Ke-01"]
["Fejezet","252 - KÖF 22 kV-os földkábel","Főberendezés típus","NA2XS(F)2Y 22 kV"]
["Fejezet név","Campus kör 22 kV-os kábel bontása","Vezeték / Kábel típus / keresztmetszet","3x1x240 mm2"]
[null,null,"Szakaszhossz",15]
["Azonosító","Megnevezés","Me. e.",null,"Egységár anyag\nNetto ár Ft","Egységár díj\nNetto ár Ft","Összesen anyag\nNetto ár Ft","Összesen díj\nNetto ár Ft","Mindösszesen\nNetto ár Ft"]
["036002010","BHTR Galaxi/Kozmosz melegzsugor tömítés, háromujjas idommal, 114mm csőcsonkhoz","DB",1,0,0,{"$f":"PRODUCT(D7,E7)","v":0},{"$f":"PRODUCT(D7,F7)","v":0},{"$f":"SUM(G7,H7)","v":0}]
["060302150","20kV XLPE kábel árokból 1x240","KM",4.4999999999999998E-2,0,0,{"$f":"PRODUCT(D8,E8)","v":0},{"$f":"PRODUCT(D8,F8)","v":0},{"$f":"SUM(G8,H8)","v":0}]
["063012010","Kábel bújtatás 4x185-240,3xPE,10kV/Papír","DB",3,0,0,0,0,0]
["063014010","Műanyag kábelfedlap árokba, belterületi KÖF kábelezéshez","TM",1,0,0,0,0,0]
["063015010","Kábel jelzőszalag terítése","TM",1,0,0,0,0,0]
["101102010","KÖF feszültségmentesítési és kiértesítési díj (egy napra, egy munkaterületre)","DB",1,0,0,0,0,0]
["601103010","Járda alap bontás","M2",6,0,0,0,0,0]
["601107010","Térkő vagy járólap kiemelés és deponálás","M2",6,0,0,0,0,0]
["601108010","Járda szegélykő bontás","FM",6,0,0,0,0,0]
["602101010","Kábelárok ásás és visszatöltés kézzel 0,8x0,4m","FM",9,0,0,0,0,0]
["802104010","Korlát belterületen, mobil","FM",15,0,0,0,0,0]
["FJ103","Geodéziai kitűzés pontszerű (oszlop, nyomvonal stb.) 5 pontig","DB",4,0,0,0,0,0]
[null,"Összesen:",{"$nulls":4},{"$f":"SUM(G7:G18)","v":0},{"$f":"SUM(H7:H18)","v":0},0]

{"sheet":"253","index":6,"n_rows":42,"n_cols":9,"rows_kept":42,"cut":false,"hidden":false,"merged":[]}
[null,"Szeged 001-263. jsz. Vendégalakulat-I. közcélú transzformátor-állomás és a középfeszült-ségű leágazásának kiváltása","DTIR sorszám",5]
[null,"Somogyi János - Z/9001-24100/69 - 0 ver. - Szerkesztés","Rajzi sorszám","Ke-03"]
["Fejezet","253 - KÖF 22 kV-os földkábel","Főberendezés típus","NA2XS(F)2Y 22 kV"]
["Fejezet név","Campus kör 22 kV-os kábel építés","Vezeték / Kábel típus / keresztmetszet","3x1x240 mm2"]
[null,null,"Szakaszhossz",32]
["Azonosító","Megnevezés","Me. e.",null,"Egységár anyag\nNetto ár Ft","Egységár díj\nNetto ár Ft","Összesen anyag\nNetto ár Ft","Összesen díj\nNetto ár Ft","Mindösszesen\nNetto ár Ft"]
["102101010","KÖF kábel átvételi alapdiagnosztika (egy napra, egy munkaterületre)","DB",1,0,0,{"$f":"PRODUCT(D7,E7)","v":0},{"$f":"PRODUCT(D7,F7)","v":0},{"$f":"SUM(G7,H7)","v":0}]
["305110050","Színjelölő zsugorcső zöld 240-500KÖF, 100mm hosszú","DB",2,0,0,{"$f":"PRODUCT(D8,E8)","v":0},{"$f":"PRODUCT(D8,F8)","v":0},{"$f":"SUM(G8,H8)","v":0}]
["305110060","Színjelölő zsugorcső sárga 240-500KÖF, 100mm hosszú","DB",2,0,0,0,0,0]
["305110070","Színjelölő zsugorcső piros 240-500KÖF, 100mm hosszú","DB",2,0,0,0,0,0]
["306002010","BHTR Galaxi/Kozmosz melegzsugor tömítés, háromujjas idommal, 114mm csőcsonkhoz","DB",3,0,0,0,0,0]
["601109010","Járda alap helyreállítás 10cm","M2",6,0,0,0,0,0]
["601112010","Járda burkolat helyreállítása bontott térkővel Csak szerelés !","M2",6,0,0,0,0,0]
["601113010","Járda szegélykő helyreállítás Csak szerelés !","FM",6,0,0,0,0,0]
["602101010","Kábelárok ásás és visszatöltés kézzel 0,8x0,4m","FM",4,0,0,0,0,0]
["602112010","Talajcseréhez homok visszatöltés","M3",6,0,0,0,0,0]
["603012010","Kábel bújtatás 4x185-240,3xPE,10kV/Papír","DB",9,0,0,0,0,0]
["603014010","Műanyag kábelfedlap árokba, belterületi KÖF kábelezéshez","TM",1.5,0,0,0,0,0]
["603015010","Kábel jelzőszalag terítése","TM",1.5,0,0,0,0,0]
["603016010","Jelzőcimke egyedi felirattal KÖF kábelre 5fm-ként rögzítve, nyomvonal hosszban számolva","TM",10,0,0,0,0,0]
["603102080","20kV 1x240mm2 egyerű ALU kábel fektetése árokba, csatornába (rézhuzalkoszorú árnyékolású)","KM",9.6000000000000002E-2,0,0,0,0,0]
["604115010","20kV kábelvégelzáró 630A dugaszolható SF6-os kapcsolóberendezéshez 3x1x240-300 XLPE kábelre, szakadócsavaros saruval","KL",3,0,0,0,0,0]
["FJ116","Geodéziai bemérés és bedolgozás hálózaton KIF+KÖF+SZV+FK (min:0,5km)","KM",0.5,0,0,0,0,0]
["FJ211","Földelési ellenállás mérés kiszállással, minősítő irattal Szegedi régióban, munkánként","DB",1,0,0,0,0,0]
["FJ611","Törmelék tároló konténer bérlése (szállítással, lerakói díjjal)","M3",5,0,0,0,0,0]
["FJ901","Tulajdonosok, és a szakhatóságok értesítése a munkakezdésről","DB",2,0,0,0,0,0]
["FJ951","Talajtömörség vizsgálat árok/gödör feltöltés, és döngölés után","DB",1,0,0,0,0,0]
["100005","HOMOK","M3",6.3,0,0,0,0,0]
["100050","BETON C 12-16/FN ELOKEVERT","M3",0.63,0,0,0,0,0]
["106746","KBKABEL 12/20KV NA2XS(F)2Y 1X240RMV","FM",98.4,0,0,0,0,0]
["112285","KBIZOPROPIL ALKOHOLOS ZSIRTALANITO KENDO","DB",27.675000000000001,0,0,0,0,0]
["114053","KBKOTEGELO 360X7,8 NATUR BELSO FOGAZASU","DB",42,0,0,0,0,0]
["114326","KBJELZOSZALAG 100MM","FM",15.375,0,0,0,0,0]
["114669","BHTR BEVEZ.TOMITES NAGY 3X1X95-240/20KV","DB",3.0750000000000002,0,0,0,0,0]
["115303","KABELFEDLAP 1000X250X10 MM","DB",15,0,0,0,0,0]
["119443","CIMKE EGYEDI FELIRATTAL KOF FUTO-KABELRE","DB",20,0,0,0,0,0]
["119477","KB ZSUGORCSO 51-25,4/100 MM ZOLD","DB",2.0499999999999998,0,0,0,0,0]
["119481","KB ZSUGORCSO 51-25,4/100 MM SARGA","DB",2.0499999999999998,0,0,0,0,0]
["119485","KB ZSUGORCSO 51-25,4/100 MM PIROS","DB",2.0499999999999998,0,0,0,0,0]
["120140","KBVEG DUGASZOL.CSAV 630A 20KV 240-300 3F","KL",3,0,0,0,0,0]
["199999","Járda szegélykő","FM",6,0,0,0,0,0]
[null,"Összesen:",{"$nulls":4},{"$f":"SUM(G7:G41)","v":0},{"$f":"SUM(H7:H41)","v":0},0]

{"sheet":"310","index":7,"n_rows":25,"n_cols":9,"rows_kept":25,"cut":false,"hidden":false,"merged":[]}
[null,"Szeged 001-263. jsz. Vendégalakulat-I. közcélú transzformátor-állomás és a középfeszült-ségű leágazásának kiváltása","DTIR sorszám",6]
[null,"Somogyi János - Z/9001-24100/69 - 0 ver. - Szerkesztés","Rajzi sorszám","Ke-01"]
["Fejezet","310 - KÖF/KIF belsőtéri tr. állomás","Főberendezés típus","GALAXi trafó"]
["Fejezet név","Vendégalakulat 001-263 trafó bontása","Vezeték / Kábel típus / keresztmetszet","-"]
[null,null,"Szakaszhossz"]
["Azonosító","Megnevezés","Me. e.",null,"Egységár anyag\nNetto ár Ft","Egységár díj\nNetto ár Ft","Összesen anyag\nNetto ár Ft","Összesen díj\nNetto ár Ft","Mindösszesen\nNetto ár Ft"]
["030251010","AHTR ház elbontása, alappal","DB",1,0,0,{"$f":"PRODUCT(D7,E7)","v":0},{"$f":"PRODUCT(D7,F7)","v":0},{"$f":"SUM(G7,H7)","v":0}]
["031003050","Transzformátor 22/0,4kV 1000kVA, KIF zászlóval (1xM16), kontakthőmérővel, gázrelével, görgővel, rezgéscsillapítóval","DB",1,0,0,{"$f":"PRODUCT(D8,E8)","v":0},{"$f":"PRODUCT(D8,F8)","v":0},{"$f":"SUM(G8,H8)","v":0}]
["032021090","NH-00 63A olvadóbetet behelyezése","DB",3,0,0,0,0,0]
["032021210","NH-2 160A olvadóbetet behelyezése","DB",9,0,0,0,0,0]
["036001010","BHTR Galaxi/Kozmosz melegzsugor tömítés, egyujjas idommal, 63,5mm csőcsonkhoz","DB",1,0,0,0,0,0]
["036001050","BHTR Galaxi/Kozmosz melegzsugor tömítés, egyujjas idommal, 89mm csőcsonkhoz","DB",4,0,0,0,0,0]
["036002010","BHTR Galaxi/Kozmosz melegzsugor tömítés, háromujjas idommal, 114mm csőcsonkhoz","DB",2,0,0,0,0,0]
["060302050","1kV alu kábel árokból 4x50 (árnyékolt és nem árnyékolt)","KM",5.0000000000000001E-3,0,0,0,0,0]
["060302150","20kV XLPE kábel árokból 1x240","KM",0.03,0,0,0,0,0]
["060303010","1kV alu kábel árokból 4x95","KM",5.0000000000000001E-3,0,0,0,0,0]
["060303030","1kV alu kábel árokból 4x150 (árnyékolt és nem árnyékolt)","KM",1.4999999999999999E-2,0,0,0,0,0]
["060304020","1kV alu kábel árokból 4x240 (árnyékolt és nem árnyékolt)","KM",5.0000000000000001E-3,0,0,0,0,0]
["060601080","Mérőszekrény S300 3F+bojler lábazattal kismegszakító elöl","DB",1,0,0,0,0,0]
["060604030","Mérőszekrény ARKO 57+77 nagyfogyasztói áramváltós mérés","DB",1,0,0,0,0,0]
["602112010","Talajcseréhez homok visszatöltés","M3",12,0,0,0,0,0]
["802104010","Korlát belterületen, mobil","FM",20,0,0,0,0,0]
["FJ701","Kozmosz és Galaxi BHTR szállítás és daruzás átlagára","DB",1,0,0,0,0,0]
["100005","HOMOK","M3",12.6,0,0,0,0,0]
[null,"Összesen:",{"$nulls":4},{"$f":"SUM(G7:G24)","v":0},{"$f":"SUM(H7:H24)","v":0},0]

{"sheet":"311","index":8,"n_rows":47,"n_cols":9,"rows_kept":47,"cut":false,"hidden":false,"merged":[]}
[null,"Szeged 001-263. jsz. Vendégalakulat-I. közcélú transzformátor-állomás és a középfeszült-ségű leágazásának kiváltása","DTIR sorszám",7]
[null,"Somogyi János - Z/9001-24100/69 - 0 ver. - Szerkesztés","Rajzi sorszám","Ke-03"]
["Fejezet","311 - KÖF/KIF belsőtéri tr. állomás","Főberendezés típus","GALAXI trafó"]
["Fejezet név","Vendégalakulat 001-263 trafó áthelyezés építés","Vezeték / Kábel típus / keresztmetszet","-"]
[null,null,"Szakaszhossz"]
["Azonosító","Megnevezés","Me. e.",null,"Egységár anyag\nNetto ár Ft","Egységár díj\nNetto ár Ft","Összesen anyag\nNetto ár Ft","Összesen díj\nNetto ár Ft","Mindösszesen\nNetto ár Ft"]
["301003050","Transzformátor 22/0,4kV 1000kVA TIER2, KIF zászlóval (1xM16), kontakthőmérővel, gázrelével, görgővel,rezgéscsillapítóval Csak szerelés !","DB",1,0,0,{"$f":"PRODUCT(D7,E7)","v":0},{"$f":"PRODUCT(D7,F7)","v":0},{"$f":"SUM(G7,H7)","v":0}]
["302020050","Fogantyú összefogás NH2 Seifel lécnél, DIN szekrénybe","DB",6,0,0,{"$f":"PRODUCT(D8,E8)","v":0},{"$f":"PRODUCT(D8,F8)","v":0},{"$f":"SUM(G8,H8)","v":0}]
["302021180","NH-2 80A olvadóbetet behelyezése","DB",3,0,0,0,0,0]
["302021240","NH-2 315A olvadóbetet behelyezése","DB",15,0,0,0,0,0]
["302102010","BHTR Galaxi 1000kVA/ 8-12-16×NH2 áramkörrel, KÖF-KIF kapcsolóberendezések nélkül, kiszállítás és daruzás nélkül Csak szerelés !","DB",1,0,0,0,0,0]
["304008010","Jelzőkábel SZRMKVM-J 14X2,5","FM",15,0,0,0,0,0]
["306001010","BHTR Galaxi/Kozmosz melegzsugor tömítés, egyujjas idommal, 63,5mm csőcsonkhoz","DB",1,0,0,0,0,0]
["306001050","BHTR Galaxi/Kozmosz melegzsugor tömítés, egyujjas idommal, 89mm csőcsonkhoz","DB",5,0,0,0,0,0]
["306002010","BHTR Galaxi/Kozmosz melegzsugor tömítés, háromujjas idommal, 114mm csőcsonkhoz","DB",2,0,0,0,0,0]
["307101020","Jelzőcimke egyedi felirattal Seifel/Pronutech NH2-es biztosító lécekhez","DB",6,0,0,0,0,0]
["307101050","Jelzőcimke \"Figyelem! Párhuzamos kábelek!..stb.\" szöveggel, KIF biztosító aljzathoz","DB",2,0,0,0,0,0]
["307101070","Jelzőcimke egyedi felirattal RM6 kapcsolómezőre","DB",4,0,0,0,0,0]
["602112010","Talajcseréhez homok visszatöltés","M3",18,0,0,0,0,0]
["606104030","Mérőszekrény ARKO 57+77 nagyfogy áramváltós mérés (Az áramváltóval szerelt ARKO57+7 szekrény tételeket kell alkalmazni!) Csak szerelés !","DB",1,0,0,0,0,0]
["802104010","Korlát belterületen, mobil","FM",20,0,0,0,0,0]
["FJ118","Geodéziai pontszerű bemérés (oszlop, szekrény, nyomvonalas bemérés esetén nem alkalmazható (min:3db)","DB",4,0,0,0,0,0]
["FJ313","VTFR vezérlés üzembehelyezése","DB",1,0,0,0,0,0]
["FJ314","VTFR vezérlés üzemirányító rendszerbe integrálása","DB",1,0,0,0,0,0]
["FJ701","Kozmosz és Galaxi BHTR szállítás és daruzás átlagára","DB",1,0,0,0,0,0]
["FJ911","ÉHTR-BHTR Kabinállomás építész műszaki ellenőrzése","db",1,0,0,0,0,0]
["E-01","Kerítés bontása és helyreállítása 10 méter hosszban","klt",1,0,0,0,0,0]
["E-02","001-263 Vendégalakulat tr-ben térvilágítási elosztó átalakítás (HKV + 4db 32A kismegszíkító szerelés","klt",1,0,0,0,0,0]
["100002","SODER","M3",12.18,0,0,{"$f":"PRODUCT(D29,E29)","v":0},{"$f":"PRODUCT(D29,F29)","v":0},{"$f":"SUM(G29,H29)","v":0}]
["100005","HOMOK","M3",18.899999999999999,0,0,0,0,0]
["100051","BETON C 16-8/KK ELOKEVERT","M3",0.84,0,0,0,0,0]
["100202","RUDFOLDELES 3M","DB",11,0,0,0,0,0]
["100996","JELZOKABEL SZRMTKVM-J 14X2,5 MM 2","FM",15.375,0,0,0,0,0]
["105404","BIZTOSITO BETET NH-2 315A GG","DB",15,0,0,0,0,0]
["113002","KBKOTEGELO 200X4,8 NATUR BELSO FOGAZASU","DB",2.1,0,0,0,0,0]
["114669","BHTR BEVEZ.TOMITES NAGY 3X1X95-240/20KV","DB",2.0499999999999998,0,0,0,0,0]
["114674","BHTR BEVEZ.TOMITES KOZEP/KICSI 1X4X10-25","DB",6.15,0,0,0,0,0]
["115933","BIZTOSITO BETET NH-2 80A GG","DB",3,0,0,0,0,0]
["118762","CSAVAR+ANYA HLF24 TM 8.8 T.HORG. M16X55","DB",4,0,0,0,0,0]
["119108","IKER IDOMPÁR 3 DB-OS KESZLET(56605)","DB",6,0,0,0,0,0]
["119445","CIMKE EGYEDI MEZO-FELIRAT RM6 CELLARA","DB",2,0,0,0,0,0]
["119447","CIMKE EGYEDI SEIFEL NH2 BIZT. ALJZATRA","DB",6,0,0,0,0,0]
["119449","CIMKE FIGYELM. IKER BIZTOSITO ALJZATRA","DB",2,0,0,0,0,0]
["121012","KERETFOLDELES SAROKIDOM BHTRHEZ 250/16MM","DB",4,0,0,0,0,0]
["121303","FOLDELESI FIXPONT FLEXIB.CSATL.(KESZLET)","KL",1,0,0,0,0,0]
["121426","BHTR KERETF. BEKOTOIDOM","DB",1,0,0,0,0,0]
[null,"Összesen",{"$nulls":4},{"$f":"SUM(G7:G46)","v":0},{"$f":"SUM(H7:H46)","v":0},0]

{"sheet":"420","index":9,"n_rows":27,"n_cols":9,"rows_kept":27,"cut":false,"hidden":false,"merged":[]}
[null,"Szeged 001-263. jsz. Vendégalakulat-I. közcélú transzformátor-állomás és a középfeszült-ségű leágazásának kiváltása","DTIR sorszám",8]
[null,"Somogyi János - Z/9001-24100/69 - 0 ver. - Szerkesztés","Rajzi sorszám","Ke-02"]
["Fejezet","420 - KIF 1 kV-os földkábel","Főberendezés típus","NAYY-J0,4 kVkábel"]
["Fejezet név","Vendégalakulat tr ideigl. 0,4 kV kábel építés","Vezeték / Kábel típus / keresztmetszet","4x240 mm2"]
[null,null,"Szakaszhossz",20]
["Azonosító","Megnevezés","Me. e.",null,"Egységár anyag\nNetto ár Ft","Egységár díj\nNetto ár Ft","Összesen anyag\nNetto ár Ft","Összesen díj\nNetto ár Ft","Mindösszesen\nNetto ár Ft"]
["101102010","KÖF feszültségmentesítési és kiértesítési díj (egy napra, egy munkaterületre)","DB",1,0,0,{"$f":"PRODUCT(D7,E7)","v":0},{"$f":"PRODUCT(D7,F7)","v":0},{"$f":"SUM(G7,H7)","v":0}]
["102103010","Nullázási hurokellenállás mérés kiszállással, minősítő irattal, munkánként","DB",1,0,0,{"$f":"PRODUCT(D8,E8)","v":0},{"$f":"PRODUCT(D8,F8)","v":0},{"$f":"SUM(G8,H8)","v":0}]
["602101010","Kábelárok ásás és visszatöltés kézzel 0,8x0,4m","FM",4,0,0,0,0,0]
["602112010","Talajcseréhez homok visszatöltés","M3",0.35,0,0,0,0,0]
["603010010","Kábel bújtatás 4x10-70, 1xXLPE","DB",1,0,0,0,0,0]
["603012010","Kábel bújtatás 4x185-240,3xPE,10kV/Papír","DB",5,0,0,0,0,0]
["603104010","1kV 4x240mm2 ALU kábel fektetése árokba, csatornába (nem árnyékolt)","KM",0.02,0,0,0,0,0]
["604104010","1kV kábelvégelzáró beltéri 1x4x10-35 huzalárnyékolású kábelekre fázissaru nélkül","DB",1,0,0,0,0,0]
["604106010","1kV kábelvégelzáró beltéri 1x4x120-240 huzalárnyékolású kábelekre fázissaru nélkül","DB",7,0,0,0,0,0]
["606006070","Kábelszekrény DIN100.2, 5xNH2 + 4xNH00 biztosító aljzatokkal, szabadon állítva, lábazattal","DB",1,0,0,0,0,0]
["FJ912","Tervezői művezetés és geodéziai kitűzés ellenőrzése","MÓ",4,0,0,0,0,0]
["100005","HOMOK","M3",0.36749999999999999,0,0,0,0,0]
["107924","KBVEG KIF ARNYEKOLT BT 4X10-35 CW10-16","KL",1,0,0,0,0,0]
["107926","KBVEG KIF ARNYEKOLT BT 4X120-240 CW50","KL",7,0,0,0,0,0]
["109160","JARDALAP 40X40X6","DB",2.1,0,0,0,0,0]
["114254","KB MZSUG SARUTOMITO CSO 120-300 125MM","DB",14.35,0,0,0,0,0]
["119486","KB ZSUGORCSO 12,7-6,4/100 MM KEK","DB",1.0249999999999999,0,0,0,0,0]
["119488","KB ZSUGORCSO 38-19/100 MM KEK","DB",7.1749999999999998,0,0,0,0,0]
["120553","KBSZEKRENY SZ.ALLO.2.540/416+LABAZAT","DB",1,0,0,0,0,0]
["121738","KBKABEL NAYY-O 0,6/1KV 4x240SM","FM",20.5,0,0,0,0,0]
[null,"Összesen:",{"$nulls":4},{"$f":"SUM(G7:G26)","v":0},{"$f":"SUM(H7:H26)","v":0},0]

{"sheet":"421","index":10,"n_rows":15,"n_cols":9,"rows_kept":15,"cut":false,"hidden":false,"merged":[]}
[null,"Szeged 001-263. jsz. Vendégalakulat-I. közcélú transzformátor-állomás és a középfeszült-ségű leágazásának kiváltása","DTIR sorszám",9]
[null,"Somogyi János - Z/9001-24100/69 - 0 ver. - Szerkesztés","Rajzi sorszám","Ke-02"]
["Fejezet","421 - KIF 1 kV-os földkábel","Főberendezés típus","NAYY-J0,4 kVkábel"]
["Fejezet név","Vendégalakulat tr ideigl 0,4 kV kábel bontás","Vezeték / Kábel típus / keresztmetszet","4x240 mm2"]
[null,null,"Szakaszhossz",60]
["Azonosító","Megnevezés","Me. e.",null,"Egységár anyag\nNetto ár Ft","Egységár díj\nNetto ár Ft","Összesen anyag\nNetto ár Ft","Összesen díj\nNetto ár Ft","Mindösszesen\nNetto ár Ft"]
["060302080","1kV réz kábel árokból 4x16","KM",0.01,0,0,{"$f":"PRODUCT(D7,E7)","v":0},{"$f":"PRODUCT(D7,F7)","v":0},{"$f":"SUM(G7,H7)","v":0}]
["060303030","1kV alu kábel árokból 4x150 (árnyékolt és nem árnyékolt)","KM",0.01,0,0,{"$f":"PRODUCT(D8,E8)","v":0},{"$f":"PRODUCT(D8,F8)","v":0},{"$f":"SUM(G8,H8)","v":0}]
["060304020","1kV alu kábel árokból 4x240 (árnyékolt és nem árnyékolt)","KM",0.04,0,0,0,0,0]
["063010010","Kábel bújtatás 4x10-70, 1xXLPE","DB",1,0,0,0,0,0]
["063011010","Kábel bújtatás 4x95-150, 1xPE","DB",1,0,0,0,0,0]
["063012010","Kábel bújtatás 4x185-240,3xPE,10kV/Papír","DB",4,0,0,0,0,0]
["066006070","Kábelszekrény DIN100.2, 5xNH2 + 4xNH00 biztosító aljzatokkal, szabadon állítva, lábazattal","DB",1,0,0,0,0,0]
["602101010","Kábelárok ásás és visszatöltés kézzel 0,8x0,4m","FM",14,0,0,0,0,0]
[null,"Összesen:",{"$nulls":4},{"$f":"SUM(G7:G14)","v":0},{"$f":"SUM(H7:H14)","v":0},0]

{"sheet":"422","index":11,"n_rows":88,"n_cols":9,"rows_kept":88,"cut":false,"hidden":false,"merged":[]}
[null,"Szeged 001-263. jsz. Vendégalakulat-I. közcélú transzformátor-állomás és a középfeszült-ségű leágazásának kiváltása","DTIR sorszám",10]
[null,"Somogyi János - Z/9001-24100/69 - 0 ver. - Szerkesztés","Rajzi sorszám","Ke-04"]
["Fejezet","422 - KIF 1 kV-os földkábel","Főberendezés típus","NAYY-J0,4kVkábel"]
["Fejezet név","Vendégalakulat tr. 0,4 kV kábel építés","Vezeték / Kábel típus / keresztmetszet","4x240 mm2"]
[null,null,"Szakaszhossz",400]
["Azonosító","Megnevezés","Me. e.",null,"Egységár anyag\nNetto ár Ft","Egységár díj\nNetto ár Ft","Összesen anyag\nNetto ár Ft","Összesen díj\nNetto ár Ft","Mindösszesen\nNetto ár Ft"]
["101102010","KÖF feszültségmentesítési és kiértesítési díj (egy napra, egy munkaterületre)","DB",1,0,0,{"$f":"PRODUCT(D7,E7)","v":0},{"$f":"PRODUCT(D7,F7)","v":0},{"$f":"SUM(G7,H7)","v":0}]
["102103010","Nullázási hurokellenállás mérés kiszállással, minősítő irattal, munkánként","DB",1,0,0,{"$f":"PRODUCT(D8,E8)","v":0},{"$f":"PRODUCT(D8,F8)","v":0},{"$f":"SUM(G8,H8)","v":0}]
["205109010","Rúdföldelés 3m-es","DB",2,0,0,0,0,0]
["601101010","Aszfalt és aljzatbeton vágás járdán","FM",4,0,0,0,0,0]
["601102010","Aszfalt és aljzatbeton vágás közúton","FM",20,0,0,0,0,0]
["601103010","Járda alap bontás","M2",2,0,0,0,0,0]
["601104010","Járda betonfelület bontás","M2",2,0,0,0,0,0]
["601105010","Járda aszfalt bontás","M2",2,0,0,0,0,0]
["601108010","Járda szegélykő bontás","FM",2,0,0,0,0,0]
["601109010","Járda alap helyreállítás 10cm","M2",2,0,0,0,0,0]
["601110010","Járda símított beton helyreállítás 10cm","M2",2,0,0,0,0,0]
["601113010","Járda szegélykő helyreállítás","FM",2,0,0,0,0,0]
["601114010","Út alap bontás","M2",8,0,0,0,0,0]
["601115010","Út aszfalt bontás","M2",8,0,0,0,0,0]
["601116010","Út szegélykő bontás","FM",4,0,0,0,0,0]
["601117010","Út alap helyreállítás","M2",8,0,0,0,0,0]
["601118010","Út szegélykő helyreállítás","FM",4,0,0,0,0,0]
["602101010","Kábelárok ásás és visszatöltés kézzel 0,8x0,4m","FM",61,0,0,0,0,0]
["602102010","Kábelárok ásás és visszatöltés kézzel 0,8x0,8m","FM",40,0,0,0,0,0]
["602104010","Kábelárok ásás és visszatöltés kézzel 1,2x0,8m, dúcolva","FM",5,0,0,0,0,0]
["602107010","Kábelárok ásás és visszatöltés géppel 1,2x0,4m, kétoldali 4/4 rézsűvel","FM",10,0,0,0,0,0]
["602109010","Szerelő-, irányváltó- vagy indító/fogadó gödör ásás/visszatöltés","M3",14,0,0,0,0,0]
["602112010","Talajcseréhez homok visszatöltés","M3",76,0,0,0,0,0]
["603011010","Kábel bújtatás 4x95-150, 1xPE","DB",1,0,0,0,0,0]
["603012010","Kábel bújtatás 4x185-240,3xPE,10kV/Papír","DB",12,0,0,0,0,0]
["603014010","Műanyag kábelfedlap árokba, belterületi KÖF kábelezéshez","TM",15,0,0,0,0,0]
["603015010","Kábel jelzőszalag terítése","TM",19,0,0,0,0,0]
["603016010","Jelzőcimke egyedi felirattal KÖF kábelre 5fm-ként rögzítve, nyomvonal hosszban számolva","TM",40,0,0,0,0,0]
["603103020","1kV 4x150mm2 ALU kábel fektetése árokba, csatornába (nem árnyékolt)","KM",0.05,0,0,0,0,0]
["603104010","1kV 4x240mm2 ALU kábel fektetése árokba, csatornába (nem árnyékolt)","KM",0.35,0,0,0,0,0]
["604103020","1kV kábelösszekötő 1x4x120-240 nem árnyékolt kábelekre","DB",1,0,0,0,0,0]
["604106010","1kV kábelvégelzáró beltéri 1x4x120-240 huzalárnyékolású kábelekre fázissaru nélkül","DB",13,0,0,0,0,0]
["605001030","Védőcső flexibilis gégecső 110mm fektetése, toldókarmantyúval nélkül","FM",10,0,0,0,0,0]
["605005030","Védőcső (szálas) KPE 110mm 12,5bar fektetése vagy biztosítása az irányított előfúrású védőcső behúzáshoz","FM",181,0,0,0,0,0]
["605016010","Kábel csőbe 4x95-150, 1xPE","FM",27,0,0,0,0,0]
["605017010","Kábel csőbe 4x185-240, 3xPE, 10kV/Papír","FM",154,0,0,0,0,0]
["605107050","Védőcső toldókarmantyú 110mm KPE csőhöz (hegesztés nélküli)","DB",24,0,0,0,0,0]
["605107090","Védőcső iszapálló záródugó tartalék KPE csövekhez 110mm","DB",10,0,0,0,0,0]
["605119040","Védőcső melegzsugor tömítés egy KÖF (1x240) vagy egy KIF kábelre (4x95-240), KPE/Gége csövekre(110)","DB",26,0,0,0,0,0]
["606006060","Kábelszekrény DIN100.1, 6xNH2 biztosító aljzatokkal, szabadon állítva, lábazattal","DB",2,0,0,0,0,0]
["802104010","Korlát belterületen, mobil","FM",240,0,0,{"$f":"PRODUCT(D47,E47)","v":0},{"$f":"PRODUCT(D47,F47)","v":0},{"$f":"SUM(G47,H47)","v":0}]
["FJ103","Geodéziai kitűzés pontszerű (oszlop, nyomvonal stb.) 5 pontig","DB",5,0,0,0,0,0]
["FJ104","Geodéziai kitűzés pontszerű (oszlop, nyomvonal) 5 pont felett pontonként","DB",10,0,0,0,0,0]
["FJ116","Geodéziai bemérés és bedolgozás hálózaton KIF+KÖF+SZV+FK (min:0,5km)","KM",0.5,0,0,0,0,0]
["FJ118","Geodéziai pontszerű bemérés (oszlop, szekrény, nyomvonalas bemérés esetén nem alkalmazható (min:3db)","DB",2,0,0,0,0,0]
["FJ211","Földelési ellenállás mérés kiszállással, minősítő irattal Szegedi régióban, munkánként","DB",1,0,0,0,0,0]
["FJ212","KIF kábel szigetelési ellenállás mérés kiszállással, minősítő irattal Szegedi régióban, munkánként","DB",1,0,0,0,0,0]
["FJ502","Járda aszfalt készítése (öntött) 3 cm. vastagságban","M2",3,0,0,0,0,0]
["FJ503","Út aszfalt készítése (hengerelt) 5 cm. vastagságban","M2",8,0,0,0,0,0]
["FJ611","Törmelék tároló konténer bérlése (szállítással, lerakói díjjal)","M3",65,0,0,0,0,0]
["FJ912","Tervezői művezetés és geodéziai kitűzés ellenőrzése","MÓ",4,0,0,0,0,0]
["FJ951","Talajtömörség vizsgálat árok/gödör feltöltés, és döngölés után","DB",1,0,0,0,0,0]
["E-03","Szakfelügyelet biztosítása közművekhez","db",3,0,0,0,0,0]
["E-05","NYY-J 4y240mm2 Cu. kábel fektetése tartóra","fm",37,0,0,0,0,0]
["E-06","Fa kivágása (kb 10m magas) és gyökérzet eltávolítása","db",1,0,0,0,0,0]
["100005","HOMOK","M3",79.8,0,0,0,0,0]
["100050","BETON C 12-16/FN ELOKEVERT","M3",0.42,0,0,0,0,0]
["100051","BETON C 16-8/KK ELOKEVERT","M3",0.21,0,0,0,0,0]
["100052","BETON C 16-16/FN ELOKEVERT","M3",1.68,0,0,0,0,0]
["100202","RUDFOLDELES 3M","DB",2,0,0,0,0,0]
["107926","KBVEG KIF ARNYEKOLT BT 4X120-240 CW50","KL",13,0,0,0,0,0]
["109160","JARDALAP 40X40X6","DB",4.2,0,0,0,0,0]
["114053","KBKOTEGELO 360X7,8 NATUR BELSO FOGAZASU","DB",168,0,0,0,0,0]
["114254","KB MZSUG SARUTOMITO CSO 120-300 125MM","DB",26.65,0,0,0,0,0]
["114326","KBJELZOSZALAG 100MM","FM",194.75,0,0,0,0,0]
["114581","ALATET KUPOS FESZITO T.HORG. M12","DB",4.2,0,0,0,0,0]
["114753","CSAVAR+ANYA HLF19 TM 8.8 T.HORG. M12X35","DB",2.0499999999999998,0,0,0,0,0]
["115110","KB VEDO GEGECSO LEPESALLO ATM 110MM","FM",10.25,0,0,0,0,0]
["115303","KABELFEDLAP 1000X250X10 MM","DB",150,0,0,0,0,0]
["118062","KGMM 110 KETTOS KARMANTYU","DB",24,0,0,0,0,0]
["118764","KPE CSO 110MM 12,5BAR PE100 SDR13,6 6M","DB",30.77,0,0,0,0,0]
["119443","CIMKE EGYEDI FELIRATTAL KOF FUTO-KABELRE","DB",80,0,0,0,0,0]
["119488","KB ZSUGORCSO 38-19/100 MM KEK","DB",13.324999999999999,0,0,0,0,0]
["119527","KB KPE CSO ZAROSAPKA 110MM","DB",10,0,0,0,0,0]
["120548","KBSZEKRENY SZ.ALLO.1.640+LABAZAT","DB",2,0,0,0,0,0]
["121737","KBKABEL NAYY-O 0,6/1KV 4x150SM","FM",51.25,0,0,0,0,0]
["121738","KBKABEL NAYY-O 0,6/1KV 4x240SM","FM",358.75,0,0,0,0,0]
["121744","KBOK MANDZSETTA 0,5FM 40-140MM","DB",26,0,0,0,0,0]
["121747","KBOK KIF SZAKCSAV 4X120-240NEM ARNYEKOLT","KL",1,0,0,0,0,0]
["199998","Út szegélykő","FM",4,0,0,0,0,0]
["199999","Járda szegélykő","FM",2,0,0,0,0,0]
[null,"Összesen:",{"$nulls":4},{"$f":"SUM(G7:G87)","v":0},{"$f":"SUM(H7:H87)","v":0},{"$f":"SUM(I7:I87)","v":0}]

{"sheet":"423","index":12,"n_rows":40,"n_cols":9,"rows_kept":40,"cut":false,"hidden":false,"merged":[]}
[null,"Szeged 001-263. jsz. Vendégalakulat-I. közcélú transzformátor-állomás és a középfeszült-ségű leágazásának kiváltása","DTIR sorszám",11]
[null,"Somogyi János - Z/9001-24100/69 - 0 ver. - Szerkesztés","Rajzi sorszám","Ke-05"]
["Fejezet","423 - KIF 1 kV-os földkábel","Főberendezés típus","NYY-J0,4kV kábel"]
["Fejezet név","Vendégalakulat tr térvilágítás kábelhálózat építés","Vezeték / Kábel típus / keresztmetszet","4x16 mm2"]
[null,null,"Szakaszhossz",95]
["Azonosító","Megnevezés","Me. e.",null,"Egységár anyag\nNetto ár Ft","Egységár díj\nNetto ár Ft","Összesen anyag\nNetto ár Ft","Összesen díj\nNetto ár Ft","Mindösszesen\nNetto ár Ft"]
["601114010","Út alap bontás","M2",2,0,0,{"$f":"PRODUCT(D7,E7)","v":0},{"$f":"PRODUCT(D7,F7)","v":0},{"$f":"SUM(G7,H7)","v":0}]
["601115010","Út aszfalt bontás","M2",2,0,0,{"$f":"PRODUCT(D8,E8)","v":0},{"$f":"PRODUCT(D8,F8)","v":0},{"$f":"SUM(G8,H8)","v":0}]
["601116010","Út szegélykő bontás","FM",2,0,0,0,0,0]
["601117010","Út alap helyreállítás","M2",2,0,0,0,0,0]
["601118010","Út szegélykő helyreállítás","FM",2,0,0,0,0,0]
["602101010","Kábelárok ásás és visszatöltés kézzel 0,8x0,4m","FM",6,0,0,0,0,0]
["602107010","Kábelárok ásás és visszatöltés géppel 1,2x0,4m, kétoldali 4/4 rézsűvel","FM",5,0,0,0,0,0]
["602109010","Szerelő-, irányváltó- vagy indító/fogadó gödör ásás/visszatöltés","M3",2,0,0,0,0,0]
["602112010","Talajcseréhez homok visszatöltés","M3",2.5,0,0,0,0,0]
["603010010","Kábel bújtatás 4x10-70, 1xXLPE","DB",2,0,0,0,0,0]
["603014010","Műanyag kábelfedlap árokba, belterületi KÖF kábelezéshez","TM",0.5,0,0,0,0,0]
["603015010","Kábel jelzőszalag terítése","TM",1,0,0,0,0,0]
["603016010","Jelzőcimke egyedi felirattal KÖF kábelre 5fm-ként rögzítve, nyomvonal hosszban számolva","TM",9,0,0,0,0,0]
["604104010","1kV kábelvégelzáró beltéri 1x4x10-35 huzalárnyékolású kábelekre fázissaru nélkül","DB",2,0,0,0,0,0]
["605005020","Védőcső (tekercs) KPE 90mm 12,5bar fektetése, vagy biztosítása az irányított előfúrású védőcső behúzáshoz","FM",32,0,0,0,0,0]
["605015010","Kábel csőbe 4x10-70, 1xXLPE","FM",32,0,0,0,0,0]
["605119010","Védőcső melegzsugor tömítés egy KIF kábelre (4x10-95), KPE/Gége csövekre (63)","DB",4,0,0,0,0,0]
["FJ103","Geodéziai kitűzés pontszerű (oszlop, nyomvonal stb.) 5 pontig","DB",3,0,0,0,0,0]
["FJ503","Út aszfalt készítése (hengerelt) 5 cm. vastagságban","M2",2,0,0,0,0,0]
["FJ611","Törmelék tároló konténer bérlése (szállítással, lerakói díjjal)","M3",2.5,0,0,0,0,0]
["E-04","NYY-J 4x16 mm2 Cu. Kábel fektetése árokba","fm",95,0,0,0,0,0]
["100005","HOMOK","M3",2.625,0,0,0,0,0]
["100050","BETON C 12-16/FN ELOKEVERT","M3",0.105,0,0,0,0,0]
["100052","BETON C 16-16/FN ELOKEVERT","M3",0.42,0,0,0,0,0]
["107924","KBVEG KIF ARNYEKOLT BT 4X10-35 CW10-16","KL",2,0,0,0,0,0]
["113283","KPE CSO 90MM 12,5BAR PE100 SDR13,6 100M","FM",32.799999999999997,0,0,0,0,0]
["114053","KBKOTEGELO 360X7,8 NATUR BELSO FOGAZASU","DB",37.799999999999997,0,0,0,0,0]
["114326","KBJELZOSZALAG 100MM","FM",10.25,0,0,0,0,0]
["115303","KABELFEDLAP 1000X250X10 MM","DB",5,0,0,0,0,0]
["119443","CIMKE EGYEDI FELIRATTAL KOF FUTO-KABELRE","DB",18,0,0,0,0,0]
["119486","KB ZSUGORCSO 12,7-6,4/100 MM KEK","DB",2.0499999999999998,0,0,0,0,0]
["121741","KBOK MANDZSETTA 0,5FM 15-50MM","DB",4,0,0,0,0,0]
["199998","Út szegélykő","FM",2,0,0,0,0,0]
[null,"Összesen:",{"$nulls":4},{"$f":"SUM(G7:G39)","v":0},{"$f":"SUM(H7:H39)","v":0},0]